fUST/lending_fUST_20260516
["ID","MTS","AMOUNT","RATE_DAILY","PERIOD"]
[422383924,1778917838000,-500.0,8.668e-05,2]
[422383914,1778917838000,-500.0,8.668e-05,2]
[422383906,1778917838000,-500.0,8.668e-05,2]
[422383920,1778917838000,-500.0,8.668e-05,2]
[422383905,1778917838000,-500.0,8.668e-05,2]
[422383923,1778917838000,-500.0,8.668e-05,2]
[422383908,1778917838000,-500.0,8.668e-05,2]
[422383918,1778917838000,-207.07114872,8.668e-05,2]
[422383916,1778917838000,-158.89682139,8.668e-05,2]
[422383879,1778917838000,-500.0,8.668e-05,2]
[422383901,1778917838000,-500.0,8.668e-05,2]
[422383883,1778917838000,-500.0,8.668e-05,2]
[422383882,1778917838000,-500.0,8.668e-05,2]
[422383893,1778917838000,-500.0,8.668e-05,2]
[422383886,1778917838000,-500.0,8.668e-05,2]
[422383903,1778917838000,-500.0,8.668e-05,2]
[422383896,1778917838000,-500.0,8.668e-05,2]
[422383891,1778917838000,-500.0,8.668e-05,2]
[422383887,1778917838000,-500.0,8.668e-05,2]
[422383897,1778917838000,-441.26972225,8.668e-05,2]
[422383899,1778917838000,-500.0,8.668e-05,2]
[422383926,1778917839000,-500.0,8.668e-05,2]
[422383941,1778917839000,-3735.16487972,8.669e-05,2]
[422383930,1778917839000,-500.0,8.668e-05,2]
[422383929,1778917839000,-500.0,8.668e-05,2]
[422383939,1778917839000,-1225.01039719,8.669e-05,2]
[422383932,1778917839000,-500.0,8.668e-05,2]
[422383936,1778917839000,-215.6966358,8.668e-05,2]
[422383934,1778917839000,-500.0,8.668e-05,2]
[422384058,1778917849000,-700.35991316,8.669e-05,2]
[422384059,1778917849000,-897.68868806,8.669e-05,2]
[422384060,1778917849000,-271.00455549,8.669e-05,2]
[422384061,1778917849000,-5064.35616059,8.669e-05,2]
[422384063,1778917849000,-145521.14979162,8.669e-05,2]
[422384064,1778917849000,-5305.70864763,8.669e-05,2]
[422384065,1778917849000,-4527.33324191,8.669e-05,2]
[422384068,1778917849000,-4903.28765284,8.669e-05,2]
[422384066,1778917849000,-1347.52501252,8.669e-05,2]
[422384070,1778917849000,-359.66901507,8.669e-05,2]
[422384071,1778917849000,-6737.03391632,8.669e-05,2]
[422384067,1778917849000,-396.54944253,8.669e-05,2]
[422384069,1778917849000,-819.30227355,8.669e-05,2]
[422384084,1778918128000,-5000.0,8.411e-05,2]
[422384093,1778918406000,-151.0,8.766e-05,7]
[422384094,1778918431000,200.0,0.00017305,120]
[422384098,1778918791000,200.0,0.00017592,120]
[422384099,1778918851000,200.0,0.00017624,120]
[422384103,1778918910000,200.0,0.0001719,120]
[422384156,1778919032000,-1415.10794611,7.762e-05,2]
[422384153,1778919032000,-452.0,7.684e-05,2]
[422384543,1778919044000,-361.0340857,7.762e-05,2]
[422384551,1778919046000,-3223.85796819,7.762e-05,2]
[422384554,1778919046000,-282.0,8.765e-05,2]
[422384553,1778919046000,-300.0,8.765e-05,2]
[422384552,1778919046000,-319.93232908,7.88e-05,2]
[422384555,1778919046000,-1.0,8.766e-05,7]
[422384561,1778919046000,-4805.38880411,9.345e-05,2]
[422384558,1778919046000,-152.0,8.77e-05,7]
[422384556,1778919046000,-152.0,8.766e-05,7]
[422384559,1778919046000,-152.0,8.77e-05,7]
[422384560,1778919046000,-300.0,9.1e-05,2]
[422384557,1778919046000,-155.36244936,8.766e-05,2]
[422384577,1778919047000,-500.0,9.583e-05,2]
[422384575,1778919047000,-500.0,9.583e-05,2]
[422384573,1778919047000,-500.0,9.583e-05,2]
[422384568,1778919047000,-621.78829552,9.566e-05,2]
[422384567,1778919047000,-599.60298507,9.511e-05,2]
[422384565,1778919047000,-578.20924308,9.456e-05,2]
[422384572,1778919047000,-500.0,9.583e-05,2]
[422384571,1778919047000,-500.0,9.583e-05,2]
[422384564,1778919047000,-557.5788265,9.401e-05,2]
[422384563,1778919047000,-537.6845,9.346e-05,2]
[422384569,1778919047000,-151.0,9.577e-05,2]
[422384562,1778919047000,-164.73324268,9.345e-05,2]
[422384566,1778919047000,-794.0,9.5e-05,2]
[422384576,1778919047000,-500.0,9.583e-05,2]
[422384574,1778919047000,-500.0,9.583e-05,2]
[422384578,1778919047000,-500.0,9.583e-05,2]
[422384584,1778919047000,-668.65185757,9.676e-05,2]
[422384581,1778919047000,-563.32515885,9.6e-05,2]
[422384582,1778919047000,-644.79446246,9.621e-05,2]
[422384580,1778919047000,-500.0,9.583e-05,2]
[422384586,1778919047000,-591.54299981,9.786e-05,2]
[422384585,1778919047000,-693.3919763,9.731e-05,2]
[422384587,1778919047000,-156.81697334,9.819e-05,2]
[422384588,1778919047000,-162.79414575,9.819e-05,2]
[422384589,1778919047000,-247.21798269,9.819e-05,2]
[422384590,1778919047000,-377.52014831,9.879e-05,2]
[422384592,1778919047000,-6579.93882016,0.0001,2]
[422384591,1778919047000,-534.58,0.0001,2]
[422384570,1778919047000,-643.68,9.583e-05,2]
[422384579,1778919047000,-500.0,9.583e-05,2]
[422384583,1778919047000,-420.0,9.642e-05,2]
[422385630,1778919151000,200.0,0.00017974,120]
[422386485,1778919210000,200.0,0.00017421,120]
[422387074,1778919230000,-151.0,6.843e-05,7]
[422387098,1778919231000,-13.73692443,6.843e-05,7]
[422387100,1778919231000,-137.26307557,6.843e-05,7]
[422387153,1778919233000,-20.73472489,6.843e-05,7]
[422388201,1778919271000,200.0,0.00017926,120]
[422388817,1778919303000,-151.0,5.479e-05,7]
[422388818,1778919311000,-20.79111016,5.479e-05,7]
[422388819,1778919311000,-130.20888984,5.479e-05,7]
[422388820,1778919314000,-43.61855485,5.479e-05,7]
[422388821,1778919314000,-107.38144515,5.479e-05,7]
[422388822,1778919331000,200.0,0.00017805,120]
[422388823,1778919379000,-87.39624804,5.479e-05,7]
[422388824,1778919379000,-63.60375196,5.479e-05,7]
[422388826,1778919385000,-6.59717316,5.479e-05,7]
[422388825,1778919385000,-144.40282684,5.479e-05,7]
[422388827,1778919390000,200.0,0.0001826,120]
[422388828,1778919450000,200.0,0.00018331,120]
[422388829,1778919489000,-279.61268103,5.369e-05,2]
[422388830,1778919489000,-5000.0,5.423e-05,2]
[422388831,1778919511000,200.0,0.00012466,120]
[422389555,1778919571000,200.0,0.00018019,120]
[422390535,1778919677000,-262.108369,5.369e-05,2]
[422390540,1778919864000,-5000.0,5.315e-05,2]
[422390539,1778919864000,-300.78419559,5.289e-05,2]
[422390538,1778919864000,-37.08395833,5.289e-05,2]
[422390537,1778919864000,-1180.91604167,5.262e-05,2]
[422390544,1778919988000,-918.0,5.478e-05,2]
[422390545,1778919988000,-300.0,5.478e-05,2]
[422390543,1778919988000,-805.789146,5.423e-05,2]
[422390547,1778920086000,100000.0,0.00018493,120]
[422390548,1778920097000,100000.0,0.00018493,120]
[422390549,1778920100000,100000.0,0.00018493,120]
[422390554,1778920122000,162.91604167,5.2e-05,2]
[422390553,1778920122000,37.08395833,5.2e-05,2]
[422390557,1778920166000,118000.0,0.00018493,120]
[422390904,1778920236000,-344.75176972,5.398e-05,2]
[422390908,1778920236000,-141.91474392,5.478e-05,2]
[422390849,1778920236000,-5000.0,5.317e-05,2]
[422390906,1778920236000,-282.0,5.477e-05,2]
[422390943,1778920238000,-205.2279171,5.479e-05,7]
[422390939,1778920238000,-242.809635,5.479e-05,7]
[422390941,1778920238000,-155.61037393,5.479e-05,7]
[422390940,1778920238000,-155.92765373,5.479e-05,7]
[422390942,1778920238000,-162.79027439,5.479e-05,7]
[422390938,1778920238000,-158.08525608,5.478e-05,2]
[422390980,1778920239000,-2702.13927449,5.479e-05,7]
[422390977,1778920239000,-335.81867456,5.479e-05,5]
[422390976,1778920239000,-1097.83946338,5.479e-05,7]
[422390973,1778920239000,-364.75584977,5.479e-05,7]
[422390975,1778920239000,-597.62088866,5.479e-05,7]
[422390974,1778920239000,-406.01273629,5.479e-05,7]
[422390972,1778920239000,-360.09100426,5.479e-05,7]
[422390982,1778920239000,-338.05340678,5.479e-05,7]
[422390978,1778920239000,-177.69466892,5.479e-05,7]
[422390985,1778920239000,-337.03385318,5.479e-05,7]
[422390983,1778920239000,-314.95446661,5.479e-05,7]
[422390979,1778920239000,-310.42821307,5.479e-05,7]
[422390984,1778920239000,-321.56951599,5.479e-05,7]
[422390987,1778920239000,-276.14586863,5.479e-05,7]
[422390986,1778920239000,-277.9956524,5.479e-05,7]
[422390988,1778920239000,-303.81803154,5.479e-05,7]
[422390990,1778920239000,-394.20370929,5.479e-05,7]
[422390991,1778920239000,-326.94648747,5.479e-05,7]
[422390994,1778920239000,-422.47446395,5.479e-05,7]
[422390989,1778920239000,-166.93440188,5.479e-05,3]
[422390992,1778920239000,-340.12290928,5.479e-05,7]
[422390981,1778920239000,-269.12996545,5.479e-05,7]
[422390970,1778920239000,-339.91956494,5.479e-05,2]
[422390946,1778920239000,-308.01817461,5.479e-05,7]
[422390967,1778920239000,-249.79867085,5.479e-05,7]
[422390944,1778920239000,-157.56565095,5.479e-05,7]
[422390945,1778920239000,-156.02678488,5.479e-05,7]
[422390949,1778920239000,-216.34377302,5.479e-05,7]
[422390947,1778920239000,-164.1922865,5.479e-05,7]
[422390948,1778920239000,-157.22743019,5.479e-05,7]
[422390952,1778920239000,-221.33935208,5.479e-05,7]
[422390953,1778920239000,-442.67870415,5.479e-05,7]
[422390951,1778920239000,-153.91087419,5.479e-05,7]
[422390954,1778920239000,-334.59370857,5.479e-05,7]
[422390956,1778920239000,-998.02948868,5.479e-05,7]
[422390969,1778920239000,-313.98089381,5.479e-05,7]
[422390961,1778920239000,-161.80826799,5.479e-05,7]
[422390958,1778920239000,-177.08922291,5.479e-05,7]
[422390962,1778920239000,-308.55737671,5.479e-05,2]
[422390959,1778920239000,-243.94623405,5.479e-05,7]
[422390957,1778920239000,-1996.05897736,5.479e-05,7]
[422390960,1778920239000,-154.27868836,5.479e-05,2]
[422390963,1778920239000,-323.61653598,5.479e-05,7]
[422390966,1778920239000,-499.59734169,5.479e-05,7]
[422390965,1778920239000,-308.97347645,5.479e-05,7]
[422390964,1778920239000,-154.48673823,5.479e-05,7]
[422390968,1778920239000,-156.9904469,5.479e-05,7]
[422390955,1778920239000,-167.29685428,5.479e-05,7]
[422390993,1778920239000,-358.01290898,5.479e-05,7]
[422390971,1778920239000,-346.54546443,5.479e-05,7]
[422390996,1778920239000,-169.24763474,5.479e-05,7]
[422391024,1778920239000,-193.87674449,5.479e-05,7]
[422391034,1778920239000,-157.94994225,5.479e-05,7]
[422391025,1778920239000,-387.75348898,5.479e-05,7]
[422391023,1778920239000,-380.63509607,5.479e-05,7]
[422391028,1778920239000,-388.17452794,5.479e-05,7]
[422391035,1778920239000,-315.8998845,5.479e-05,7]
[422391029,1778920239000,-582.26179191,5.479e-05,7]
[422391026,1778920239000,-194.08726397,5.479e-05,7]
[422391027,1778920239000,-634.42345405,5.479e-05,7]
[422391033,1778920239000,-976.28049888,5.479e-05,7]
[422391014,1778920239000,-355.55555556,5.479e-05,7]
[422391030,1778920239000,-581.63023347,5.479e-05,7]
[422391036,1778920239000,-473.84982675,5.479e-05,7]
[422391037,1778920239000,-308.32673145,5.479e-05,7]
[422391038,1778920239000,-155.3241454,5.479e-05,7]
[422391044,1778920239000,-167.52871576,5.479e-05,7]
[422391040,1778920239000,-310.6482908,5.479e-05,7]
[422391043,1778920239000,-625.89179873,5.479e-05,7]
[422391042,1778920239000,-465.9724362,5.479e-05,7]
[422391041,1778920239000,-417.26119915,5.479e-05,7]
[422391039,1778920239000,-208.63059958,5.479e-05,7]
[422390995,1778920239000,-306.29234935,5.479e-05,7]
[422391032,1778920239000,-650.85366592,5.479e-05,7]
[422391021,1778920239000,-570.95264411,5.479e-05,7]
[422391031,1778920239000,-325.42683296,5.479e-05,7]
[422391016,1778920239000,-178.24082003,5.479e-05,2]
[422390997,1778920239000,-338.49526947,5.479e-05,7]
[422391020,1778920239000,-317.21172703,5.479e-05,7]
[422390998,1778920239000,-215.0910047,5.479e-05,7]
[422391001,1778920239000,-731.02104826,5.479e-05,7]
[422390999,1778920239000,-430.1820094,5.479e-05,7]
[422391005,1778920239000,-311.23496923,5.479e-05,7]
[422391006,1778920239000,-358.374355,5.479e-05,7]
[422391000,1778920239000,-365.51052413,5.479e-05,7]
[422391004,1778920239000,-155.61748462,5.479e-05,7]
[422391003,1778920239000,-331.82849579,5.479e-05,7]
[422391007,1778920239000,-179.1871775,5.479e-05,7]
[422391002,1778920239000,-165.9142479,5.479e-05,7]
[422391010,1778920239000,-373.5975976,5.479e-05,2]
[422391022,1778920239000,-951.63518108,5.479e-05,7]
[422391008,1778920239000,-186.7987988,5.479e-05,2]
[422391018,1778920239000,-534.72246008,5.479e-05,2]
[422391019,1778920239000,-190.31754804,5.479e-05,7]
[422391017,1778920239000,-356.48164005,5.479e-05,2]
[422391015,1778920239000,-355.38933785,5.479e-05,7]
[422391012,1778920239000,-560.3963964,5.479e-05,2]
[422391011,1778920239000,-177.77777778,5.479e-05,7]
[422391009,1778920239000,-537.5615325,5.479e-05,7]
[422391013,1778920239000,-533.33333333,5.479e-05,7]
[422391085,1778920240000,-180.3670299,5.479e-05,7]
[422391075,1778920240000,-208.53016276,5.479e-05,7]
[422391080,1778920240000,-533.33333333,5.479e-05,7]
[422391077,1778920240000,-417.06032551,5.479e-05,7]
[422391083,1778920240000,-560.86336278,5.479e-05,7]
[422391086,1778920240000,-541.10108971,5.479e-05,7]
[422391094,1778920240000,-300.00672882,5.479e-05,7]
[422391089,1778920240000,-542.00064577,5.479e-05,7]
[422391090,1778920240000,-813.00096865,5.479e-05,7]
[422391087,1778920240000,-360.7340598,5.479e-05,7]
[422391099,1778920240000,-158.51468563,5.479e-05,4]
[422391091,1778920240000,-169.21809311,5.479e-05,7]
[422391093,1778920240000,-507.65427934,5.479e-05,7]
[422391096,1778920240000,-179.35656476,5.479e-05,7]
[422391092,1778920240000,-338.43618623,5.479e-05,7]
[422391095,1778920240000,-450.01009323,5.479e-05,7]
[422391098,1778920240000,-538.06969428,5.479e-05,7]
[422391109,1778920240000,-153.2015117,5.479e-05,7]
[422391097,1778920240000,-358.71312952,5.479e-05,7]
[422391108,1778920240000,-306.40302339,5.479e-05,7]
[422391078,1778920240000,-177.77777778,5.479e-05,7]
[422391088,1778920240000,-271.00032288,5.479e-05,7]
[422391079,1778920240000,-355.55555556,5.479e-05,7]
[422391047,1778920240000,-166.81633077,5.479e-05,7]
[422391074,1778920240000,-268.06587569,5.479e-05,7]
[422391105,1778920240000,-462.69915846,5.479e-05,7]
[422391045,1778920240000,-224.43537141,5.479e-05,7]
[422391048,1778920240000,-333.63266153,5.479e-05,7]
[422391046,1778920240000,-448.87074282,5.479e-05,7]
[422391049,1778920240000,-500.4489923,5.479e-05,7]
[422391051,1778920240000,-971.72747254,5.479e-05,7]
[422391050,1778920240000,-323.90915751,5.479e-05,7]
[422391060,1778920240000,-431.82055531,5.479e-05,7]
[422391053,1778920240000,-165.4170869,5.479e-05,7]
[422391054,1778920240000,-330.83417379,5.479e-05,7]
[422391070,1778920240000,-316.82607833,5.479e-05,7]
[422391056,1778920240000,-496.25126069,5.479e-05,7]
[422391062,1778920240000,-215.91027765,5.479e-05,7]
[422391058,1778920240000,-159.92148714,5.479e-05,7]
[422391068,1778920240000,-158.41303917,5.479e-05,7]
[422391064,1778920240000,-198.93848586,5.479e-05,7]
[422391066,1778920240000,-397.87697173,5.479e-05,7]
[422391073,1778920240000,-223.41937751,5.479e-05,7]
[422391072,1778920240000,-475.2391175,5.479e-05,7]
[422391082,1778920240000,-280.43168139,5.479e-05,7]
[422391081,1778920240000,-155.35741944,5.479e-05,7]
[422391076,1778920240000,-625.59048827,5.479e-05,7]
[422391052,1778920240000,-647.81831503,5.479e-05,7]
[422391103,1778920240000,-435.39920826,5.479e-05,7]
[422391084,1778920240000,-841.29504417,5.479e-05,7]
[422391102,1778920240000,-217.69960413,5.479e-05,7]
[422391130,1778920240000,-354.17844582,5.507e-05,7]
[422391131,1778920240000,-272.63390414,5.507e-05,7]
[422391135,1778920240000,-87.15638762,5.507e-05,2]
[422391138,1778920240000,-463.46021468,5.507e-05,7]
[422391137,1778920240000,-485.42480397,5.507e-05,7]
[422391139,1778920240000,-749.39601254,5.507e-05,7]
[422391140,1778920240000,-509.87934741,5.507e-05,2]
[422391147,1778920240000,-1646.75919507,5.507e-05,7]
[422391136,1778920240000,-375.67967745,5.507e-05,2]
[422391141,1778920240000,-470.97134071,5.507e-05,7]
[422391132,1778920240000,-166.37293123,5.507e-05,7]
[422391143,1778920240000,-519.81819665,5.507e-05,7]
[422391142,1778920240000,-188.31344439,5.507e-05,7]
[422391145,1778920240000,-547.13377466,5.507e-05,7]
[422391149,1778920240000,-165.79452657,5.507e-05,7]
[422391148,1778920240000,-896.43133299,5.507e-05,7]
[422391150,1778920240000,-503.72801183,5.507e-05,5]
[422391152,1778920240000,-246.66810814,5.507e-05,7]
[422391151,1778920240000,-161.68888657,5.507e-05,7]
[422391153,1778920240000,-465.6423196,5.507e-05,7]
[422391154,1778920240000,-1372.3575353,5.507e-05,7]
[422391101,1778920240000,-475.5440569,5.479e-05,4]
[422391144,1778920240000,-540.1365064,5.507e-05,7]
[422391128,1778920240000,-160.76808959,5.507e-05,7]
[422391146,1778920240000,-609.01910444,5.507e-05,7]
[422391127,1778920240000,-213.72571976,5.507e-05,7]
[422391129,1778920240000,-166.06540887,5.507e-05,7]
[422391104,1778920240000,-393.68592222,5.479e-05,2]
[422391107,1778920240000,-373.6823182,5.479e-05,7]
[422391106,1778920240000,-186.8411591,5.479e-05,7]
[422391110,1778920240000,-418.44200333,5.479e-05,7]
[422391112,1778920240000,-195.51457627,5.479e-05,7]
[422391111,1778920240000,-489.77147043,5.479e-05,7]
[422391117,1778920240000,-331.61430217,5.479e-05,7]
[422391114,1778920240000,-391.02915254,5.479e-05,7]
[422391118,1778920240000,-185.30088374,5.479e-05,7]
[422391115,1778920240000,-169.93988625,5.479e-05,7]
[422391121,1778920240000,-235.63311359,5.507e-05,7]
[422391100,1778920240000,-317.02937127,5.479e-05,4]
[422391120,1778920240000,-155.63553626,5.507e-05,2]
[422391113,1778920240000,-586.54372881,5.479e-05,7]
[422391119,1778920240000,-370.60176747,5.479e-05,7]
[422391123,1778920240000,-307.82174837,5.507e-05,7]
[422391133,1778920240000,-487.89246811,5.507e-05,7]
[422391134,1778920240000,-221.02028593,5.507e-05,7]
[422391122,1778920240000,-160.48470515,5.507e-05,7]
[422391125,1778920240000,-501.89056285,5.507e-05,7]
[422391124,1778920240000,-664.01805623,5.507e-05,7]
[422391126,1778920240000,-2994.08846604,5.507e-05,7]
[422391116,1778920240000,-497.42145326,5.479e-05,7]
[422391191,1778920252000,-482.35427399,5.507e-05,7]
[422391186,1778920252000,-2680.85137644,5.507e-05,7]
[422391187,1778920252000,-538.2599309,5.507e-05,7]
[422391190,1778920252000,-507.08011017,5.507e-05,7]
[422391192,1778920252000,-115.64135883,5.507e-05,7]
[422391188,1778920252000,-247.24265743,5.507e-05,7]
[422391189,1778920252000,-225.18904249,5.507e-05,7]
[422391206,1778920253000,-507.74290421,5.507e-05,7]
[422391202,1778920253000,-510.18436393,5.507e-05,7]
[422391203,1778920253000,-633.71169593,5.507e-05,7]
[422391204,1778920253000,-459.43852402,5.507e-05,7]
[422391207,1778920253000,-645.2730141,5.507e-05,7]
[422391205,1778920253000,-204.26205896,5.507e-05,7]
[422391208,1778920253000,-1096.5315724,5.507e-05,7]
[422391201,1778920253000,-537.01936348,5.507e-05,7]
[422391198,1778920253000,-591.30556394,5.507e-05,7]
[422391200,1778920253000,-312.00833797,5.507e-05,7]
[422391199,1778920253000,-490.4197312,5.507e-05,7]
[422391197,1778920253000,-333.86880377,5.507e-05,3]
[422391194,1778920253000,-555.99130481,5.507e-05,7]
[422391196,1778920253000,-455.72704731,5.507e-05,7]
[422391195,1778920253000,-552.29173726,5.507e-05,7]
[422391193,1778920253000,-389.90942094,5.507e-05,7]
[422391209,1778920253000,-497.74274369,5.507e-05,7]
[422391211,1778920253000,-300.95850764,5.507e-05,2]
[422391225,1778920253000,-300.0,5.588e-05,2]
[422391213,1778920253000,-590.52888333,5.507e-05,2]
[422391228,1778920253000,-300.0,5.588e-05,2]
[422391229,1778920253000,-300.0,5.588e-05,2]
[422391227,1778920253000,-300.0,5.588e-05,2]
[422391220,1778920253000,-484.41973984,5.507e-05,7]
[422391218,1778920253000,-162.02353723,5.507e-05,7]
[422391219,1778920253000,-76.10373745,5.507e-05,7]
[422391217,1778920253000,-154.2361021,5.507e-05,7]
[422391222,1778920253000,-627.66300499,5.507e-05,7]
[422391230,1778920253000,-31.66948229,5.588e-05,2]
[422391223,1778920253000,-734.65720565,5.507e-05,7]
[422391224,1778920253000,-300.0,5.588e-05,2]
[422391212,1778920253000,-653.09881239,5.507e-05,7]
[422391214,1778920253000,-262.94000264,5.507e-05,7]
[422391210,1778920253000,-466.85245385,5.507e-05,7]
[422391216,1778920253000,-7.76148065,5.507e-05,7]
[422391221,1778920253000,-459.60453509,5.507e-05,7]
[422391226,1778920253000,-300.0,5.588e-05,2]
[422391215,1778920253000,-431.10873504,5.507e-05,7]
[422391231,1778920269000,-5489.50434443,5.507e-05,2]
[422391236,1778920271000,-438.4577692,5.537e-05,7]
[422391234,1778920271000,-582.37169699,5.537e-05,7]
[422391233,1778920271000,-628.16065215,5.537e-05,7]
[422391232,1778920271000,-382.65880197,5.537e-05,7]
[422391235,1778920271000,-628.84273526,5.537e-05,7]
[422391237,1778920276000,396.10010469,5.479e-05,7]
[422391238,1778920281000,396.05195935,5.479e-05,7]
[422391242,1778920326000,2505.62005453,5.479e-05,7]
[422391241,1778920326000,315.19814204,5.479e-05,2]
[422391243,1778920327000,312.64787123,5.479e-05,7]
[422391244,1778920327000,554.1575513,5.479e-05,7]
[422391245,1778920328000,367.50801828,5.479e-05,7]
[422391246,1778920329000,358.69814253,5.479e-05,7]
[422391247,1778920330000,283.52250048,5.479e-05,7]
[422391248,1778920345000,318.79125682,5e-05,2]
[422391250,1778920441000,-340.12290929,5.479e-05,7]
[422391251,1778920441000,-433.62408023,5.479e-05,7]
[422391252,1778920441000,-347.13132926,5.479e-05,7]
[422391254,1778920441000,-381.97170027,5.479e-05,7]
[422391255,1778920441000,-346.01498036,5.479e-05,7]
[422391253,1778920441000,-370.53935246,5.479e-05,7]
[422391249,1778920441000,-88.33624698,5.479e-05,7]
[422391257,1778920441000,-1017.99659332,5.479e-05,7]
[422391258,1778920441000,-506.1762859,5.479e-05,7]
[422391260,1778920441000,-484.74389985,5.479e-05,7]
[422391259,1778920441000,-161.93270824,5.479e-05,7]
[422391261,1778920441000,-452.62006796,5.537e-05,7]
[422391262,1778920441000,-559.24948432,5.537e-05,7]
[422391263,1778920441000,-1093.97775161,5.537e-05,7]
[422391256,1778920441000,-422.47446395,5.479e-05,7]
[422391264,1778920451000,-548.31276314,5.479e-05,7]
[422391265,1778920451000,-476.44444444,5.479e-05,7]
[422391266,1778920451000,-767.87293123,5.479e-05,7]
[422391267,1778920451000,-504.2206656,5.479e-05,7]
[422391268,1778920462000,228.86,0.00018493,120]
[422391271,1778920463000,-237.82749124,5.479e-05,7]
[422391272,1778920463000,-483.38364014,5.479e-05,7]
[422391280,1778920491000,-699.20874318,5.537e-05,7]
[422391282,1778920510000,1599.72,0.00018493,120]
[422391283,1778920674000,160.0,5e-05,2]
[422391286,1778920748000,297.49,0.00018493,120]
[422391295,1778921193000,1000.0,5.001e-05,2]
[422391294,1778921193000,1000.0,5.001e-05,2]
[422391297,1778921193000,1000.0,5.001e-05,2]
[422391298,1778921193000,1000.0,5.001e-05,2]
[422391296,1778921193000,1000.0,5.001e-05,2]
[422391299,1778921200000,4940.59766163,5e-05,2]
[422391301,1778921215000,5000.0,5e-05,2]
[422391302,1778921237000,5000.0,5e-05,2]
[422391303,1778921259000,5000.0,5e-05,2]
[422391305,1778921282000,1570.04262686,5e-05,2]
[422391308,1778921378000,176.8457328,4.487e-05,2]
[422391384,1778921431000,-500.0,5.478e-05,2]
[422391382,1778921431000,-256.88068869,5.478e-05,2]
[422391378,1778921431000,-69.50765222,5.478e-05,2]
[422391376,1778921431000,-430.49234778,5.478e-05,2]
[422391380,1778921431000,-500.0,5.478e-05,2]
[422391367,1778921431000,-300.0,5.477e-05,2]
[422391360,1778921431000,-604.25309705,5.476e-05,2]
[422391364,1778921431000,-1200.0,5.477e-05,2]
[422391362,1778921431000,-9.65466082,5.476e-05,2]
[422391369,1778921431000,-300.0,5.477e-05,2]
[422391354,1778921431000,-586.09224213,5.476e-05,2]
[422391352,1778921431000,-345.76038732,5.079e-05,2]
[422391365,1778921431000,-262.0,5.477e-05,2]
[422391371,1778921431000,-300.0,5.477e-05,2]
[422391386,1778921431000,-500.0,5.478e-05,2]
[422391388,1778921431000,-368.60846482,5.478e-05,2]
[422391416,1778921431000,-81.23076283,5.479e-05,7]
[422391413,1778921431000,-231.71513654,5.479e-05,7]
[422391411,1778921431000,-182.12211369,5.479e-05,7]
[422391407,1778921431000,-174.20584869,5.479e-05,7]
[422391399,1778921431000,-282.16980893,5.479e-05,7]
[422391397,1778921431000,-97.53010066,5.478e-05,2]
[422391409,1778921431000,-546.36634108,5.479e-05,7]
[422391392,1778921431000,-517.26535588,5.478e-05,2]
[422391390,1778921431000,-131.39153518,5.478e-05,2]
[422391401,1778921431000,-564.33961787,5.479e-05,7]
[422391402,1778921431000,-190.0383787,5.479e-05,7]
[422391374,1778921431000,-500.0,5.478e-05,2]
[422391373,1778921431000,-350.98853571,5.478e-05,2]
[422391394,1778921431000,-402.46989934,5.478e-05,2]
[422391422,1778921432000,-884.84602065,5.479e-05,7]
[422391424,1778921432000,-2654.53806196,5.479e-05,7]
[422391426,1778921432000,-245.89027206,5.479e-05,7]
[422391428,1778921432000,-491.78054412,5.479e-05,7]
[422391432,1778921432000,-737.67081618,5.479e-05,7]
[422391430,1778921432000,-345.20490995,5.479e-05,7]
[422391434,1778921432000,-172.60245497,5.479e-05,7]
[422391436,1778921432000,-175.51199992,5.479e-05,7]
[422391420,1778921432000,-673.51280428,5.479e-05,7]
[422391442,1778921432000,-204.66964661,5.479e-05,7]
[422391440,1778921432000,-351.02399985,5.479e-05,7]
[422391444,1778921432000,-409.33929321,5.479e-05,7]
[422391446,1778921432000,-614.00893982,5.479e-05,7]
[422391438,1778921432000,-517.80736492,5.479e-05,7]
[422391450,1778921432000,-207.10940147,5.479e-05,7]
[422391448,1778921432000,-152.84396729,5.479e-05,7]
[422391452,1778921432000,-388.03526633,5.479e-05,7]
[422391456,1778921432000,-313.04622067,5.479e-05,7]
[422391418,1778921432000,-1096.17923702,5.479e-05,7]
[422391454,1778921432000,-312.36134787,5.479e-05,7]
[422391540,1778921438000,-186.41220408,5.479e-05,7]
[422391542,1778921438000,-372.82440815,5.479e-05,7]
[422391560,1778921438000,-341.22805224,5.479e-05,7]
[422391558,1778921438000,-308.86455176,5.479e-05,7]
[422391546,1778921438000,-199.4248678,5.479e-05,7]
[422391544,1778921438000,-375.82954246,5.479e-05,7]
[422391574,1778921438000,-165.3182684,5.479e-05,7]
[422391563,1778921438000,-528.00409266,5.479e-05,7]
[422391576,1778921438000,-330.63653679,5.479e-05,7]
[422391556,1778921438000,-170.61402612,5.479e-05,7]
[422391578,1778921438000,-495.95480519,5.479e-05,7]